Workbook

Sheet 説明
A1: 「熱電対による表面温度測定の誤差解析」 熱抵抗網解析シートの説明
A4: １．概要
A5: ・ | B5: 図１のように，熱電対の測温接点を測定面に接着し，リード線の一部を等温面に這わせた場合の誤差解析を行います．
B6: （解析方法の詳細は，日本機械学会論文集, Vol.84, No.867, DOI: 10.1299/transjsme.18-00216 をご参照ください）
A7: ・ | B7: 簡単のため，測定面は等温（温度 Tw）であり，熱電対の接触により温度が変化しないと仮定しています．
B8: （一般に，測定面の熱容量が大きく熱伝導率が高い場合にはこの近似が成り立ちます）
F19: 図１ 熱電対による表面温度測定
A21: ・ | B21: 測温接点（junctiuon, 直径 dj）と測定面（measuring surface, 温度 Tw）は，接着剤（adhesive, 熱伝導率 ka）で
B22: 接着されています．
A23: ・ | B23: 一対の金属素線（metal wires，直径 dm）が被覆から露出している領域を“素線露出部(exposed region，長さ lm)”，
B24: 一対の被覆線（insulated wires，直径 di）がシースから露出している領域を“内側被覆部(inner insulated region, 長さ li)”
B25: と表記しています．また，それ以降のリード線は，2本の被覆線が1本のシース（等価直径 ds）に覆われており，
B26: そのうち加熱面に這わせている領域を“シース加熱部(heated sheathed region, 長さ ls)”，全周が空気流にさらされている
B27: 領域を“フィン部(fin region, 長さ ls')”と表記しています．
A30: ２．熱抵抗網モデル
A31: ・ | B31: 図１の伝熱経路を，図２のように熱抵抗網でモデル化しています．
A32: ・ | B32: 熱抵抗網は，27個の熱抵抗および19個の節点（熱抵抗の結合点）から構成されています．
B33: 図2の赤色の数値は節点番号をして示しています．
A34: ・ | B34: 節点番号1が測定面（温度 Tw），節点番号2が測温接点（温度 Tj），節点番号19が周囲空気（温度 Tf）を表しています．
F49: 図２ 図１の伝熱経路の熱抵抗網
A51: ・ | B51: 各熱抵抗の記号，意味，および論文中の式番号は以下の通りです．
B52: Rj | C52: 測温接点と測定面間の熱抵抗 | K52: 式(10)
B53: Rm | C53: 金属素線（素線露出部）の熱抵抗，長さ lm/2 の熱抵抗 Rm/2 が2つ直列に接続 | K53: 式(1)
B54: Rmi | C54: 金属素線（内側被覆部）の熱抵抗，長さ li/2 の熱抵抗 Rmi/2 が2つ直列に接続 | K54: 式(2)
B55: Rms | C55: 金属素線（シース加熱部）の熱抵抗，長さ ls/2 の熱抵抗 Rms/2 が2つ直列に接続 | K55: 式(3)
B56: Rms' | C56: 金属素線（フィン部）の熱抵抗，長さ lc の熱抵抗 Rms' が4つ直列に接続 | K56: 式(16)
C57: lc は，フィン部の代表長さ | K57: 式(15)
B58: Ri | C58: 被覆（内側被覆部）の厚さ方向の熱抵抗 | K58: 式(4)
B59: Rs | C59: 被覆+シース（シース加熱部）の厚さ方向の熱抵抗 | K59: 式(5)
B60: Rs' | C60: 被覆+シース（フィン部）の厚さ方向の熱抵抗 | K60: 式(17)
B61: Rit | C61: 絶縁テープの熱抵抗 | K61: 式(14)
B62: Rgm | C62: 素線露出部と絶縁テープ間の熱抵抗 | K62: 式(11)
B63: Rgi | C63: 内側被覆部と測定面間の熱抵抗 | K63: 式(12)
B64: Rgs | C64: シース加熱部と測定面間の熱抵抗 | K64: 式(13)
B65: Rhj | C65: 測温接点からの熱伝達による熱抵抗（対流+放射） | K65: 式(6)
B66: Rhm | C66: 素線露出部からの熱伝達による熱抵抗（対流+放射） | K66: 式(7)
B67: Rhi | C67: 内側被覆部からの熱伝達による熱抵抗（対流+放射） | K67: 式(8)
B68: Rhs | C68: シース加熱部からの熱伝達による熱抵抗（対流+放射） | K68: 式(9)
B69: Rhs' | C69: フィン部からの熱伝達による熱抵抗（対流+放射） | K69: 式(18)
B71: 注意：素線露出部（長さlm），内側被覆部（長さli），シース加熱部（長さls）をそれぞれ2つの熱抵抗で表しているため，
B72: lm，li，ls が長くなると素線の温度分布を正しく評価できなくなり，誤差率の予測精度が下がります．
A75: ３．熱抵抗網解析シートの使い方
A76: (1) | B76: 「熱抵抗網解析」シートの水色のセルに条件を入力ます．
B77: 熱電対の種類 | D77: T or K | F77: T熱電対の場合は"T"を，K熱電対の場合は"K"を入力
D78: 素線径 dm | F78: 金属素線の直径を入力
B79: 測温接点 | D79: 隙間の熱伝導率 ka | F79: 測温接点と測定面間の接着剤の熱伝導率を入力
F80: 瞬間接着剤は0.1W/(m・K)程度，導電性接着剤は1~4W/(m・K)程度，はんだは50W/(m・K)程度
B81: 素線露出部 | D81: 長さ lm | F81: 素線露出部の長さを入力
B82: 内側被覆部 | D82: 長さ li | F82: 内側被覆部の長さを入力．内側被覆部がない場合は0に近い値（例えば 1e-6）を入力
B83: シース加熱部 | D83: 長さ ls | F83: シース加熱部の長さを入力．シース加熱部がない場合は0に近い値（例えば 1e-6）を入力
B84: 熱伝達率 | D84: 周囲風速 u | F84: 測定面の周囲風速（時間平均風速）を入力
D85: 測定面辺長 L | F85: 測定面の流れ方向辺長（論文の式(32)の Lの値）を入力
D86: ※ 測定面の対流熱伝達率が推定できる場合は，hcv (I36)の値を直接入力（この場合，測定面辺長は入力不要）
D87: ※ フィン表面の対流熱伝達率が推定できる場合は，hcv' (I39)の値を直接入力
B88: 測定面温度 | F88: 測定面温度 Tw を入力
B89: 周囲空気温度 | F89: 周囲空気温度 Tf を入力
A91: (1)' | B91: 必要に応じて，以下の値を入力します
B92: 測温接点 | D92: 直径 dj | F92: 測温接点の直径を入力．デフォルト値として，素線径 dmの2倍の値が入力されています
D93: 測定面との隙間 gi | F93: 最小隙間（実効値）を入力
F94: デフォルト値として，論文で評価された値(0.01mm)が入力されています
B95: 素線露出部 | D95: 絶縁テープ厚さ δit | F95: 絶縁テープの厚さを入力．絶縁テープがない場合は0に近い値（例えば 1e-10）を入力
D96: 絶縁テープ熱伝導率 kit | F96: 絶縁テープの熱伝導率を入力．デフォルト値として，0.2W(m・K)が入力されています
D97: 絶縁テープとの隙間 gm | F97: 最小隙間（実効値）を入力
F98: デフォルト値として，論文で評価された値(0.065mm)が入力されています
D99: 隙間の熱伝導率 kgm | F99: 隙間が接着剤等で充填されている場合は，充填剤の熱伝導率を入力
F100: デフォルト値として，空気の熱伝導率が入力されています
B101: 内側被覆部 | D101: 内側被覆直径 di | F101: デフォルト値として，素線径の3倍の値が入力されています
D102: 内側被覆の熱伝導率 ki | F102: 被覆材の熱伝導率を入力．デフォルト値として，0.2W(m・K)が入力されています
D103: 測定面との隙間 gi | F103: 最小隙間（実効値）を入力
F104: デフォルト値として，論文で評価された値(0.065mm)が入力されています
D105: 隙間の熱伝導率 kgi | F105: 隙間が接着剤等で充填されている場合は，充填剤の熱伝導率を入力
F106: デフォルト値として，空気の熱伝導率が入力されています
B107: シース加熱部 | D107: シース等価直径 ds | F107: シースの長辺と短辺の平均値を入力
F108: デフォルト値として，素線径の8倍の値が入力されています
D109: シースの熱伝導率 ks | F109: シース材の熱伝導率を入力．デフォルト値として，0.2W(m・K)が入力されています
D110: 測定面との隙間 gs | F110: 最小隙間（実効値）を入力
F111: デフォルト値として，論文で評価された値(0.065mm)が入力されています
D112: 隙間の熱伝導率 kgs | F112: 隙間が接着剤等で充填されている場合は，充填剤の熱伝導率を入力
F113: デフォルト値として，空気の熱伝導率が入力されています
B114: フィン部 | D114: 長さ ls' | F114: デフォルト値として，100mm(十分長い値)が入力されています
F115: （ある程度以上の長さになると誤差率が変化しなくなります）
B116: 熱伝達率 | D116: 金属素線の放射率 | F116: 金属素線2本の放射率の平均値を入力．デフォルト値として0.2が入力されています
D117: シース表面の放射率 | F117: シース材表面の放射率を入力．デフォルト値として0.9が入力されています
A119: (2) | B119: 「計算実行」のボタンを押す
B120: → マクロ（SOLVE）が実行され，各節点の温度（O37~O53）および誤差率（W36）が計算されます．
B122: 誤差率は ηerrは次式で定義されます. | F122: ηerr = (Tw - Tj)/(Tw - Tf) ×100 (%)
B124: ※ 計算実行の際は，あらかじめマクロを利用できる設定にしておく必要があります．
A127: ４．ご利用に際して
A128: ・ | B128: 本解析シートはご自由にお使いください．ご利用しやすいように自由に加工していただいて構いません．
B129: ただし，ご利用に際して，何らかのトラブルや損失・損害等が発生したとしても，製作者は一切責任を負いません．
B131: 製作者： 防衛大学校 システム工学群 機械工学科 中村 元

Sheet 熱抵抗網解析
A1: 熱電対による表面温度測定の誤差解析（熱抵抗網解析）
B2: 空気の熱伝導率（Tw） | E2: =-0.000000022933*$O$2^2+0.000072925*$O$2+0.024175 -> 0.0298622288 | F2: W/(m・K) | J2: 熱抵抗網解析 | L2: 測定面温度 | N2: Tw = | O2: 80 | P2: ℃ | Q2: 節点番号 | R2: 1 | T2: 節点数 | U2: 19
B3: 空気の熱伝導率（(Tw+Tf)/2） | E3: =-0.000000022933*(($O$2+$O$3)/2)^2+0.000072925*(($O$2+$O$3)/2)+0.024175 -> 0.02794035342 | F3: W/(m・K) | L3: 周囲空気温度 | N3: Tf = | O3: 25 | P3: ℃ | Q3: 節点番号 | R3: 19 | T3: 熱抵抗数 | U3: 27
B4: 空気の動粘性係数（(Tw+Tf)/2） | E4: =(8.2925*0.00001*(($O$2+$O$3)/2)^2+9.4005*0.01*(($O$2+$O$3)/2)+13.4885)*0.000001 -> 1.865232453e-05 | F4: m2/s
A5: 熱電対の種類 | J5: 熱抵抗 | M5: 論文の式 | S5: 節点1 | T5: 節点2 | U5: 熱コンダクタンス | W5: 熱抵抗(K/W) | X5: 熱流量(W)
B6: T or K | E6: K | J6: 測温接点と測定面間 | M6: 式(10) | N6: 1/Rj = 2πka((rj+gj)ln((rj+gj)/gj)-rj) | S6: 1 | T6: 2 | U6: =2*PI()*$E$11*((($E$9/1000)/2+($E$10/1000))*LN((($E$9/1000)/2+($E$10/1000))/($E$10/1000))-($E$9/1000)/2) -> 0.0002760515655 | V6: W/K | W6: =1/U6 -> 3622.511607 | X6: =(O36-O37)/W6 -> 0.0009352396714
B7: 素線径 | D7: dm = | E7: 0.2 | F7: mm | J7: 金属素線（素線露出部1） | M7: 式(1) | N7: 2/Rm = (km・2πrm2) / (lm/2) | S7: 2 | T7: 3 | U7: =($E$14*2*PI()*(($E$7/1000)/2)^2)/(($E$13/1000)/2) -> 0.0006157521601 | V7: W/K | W7: 1624.030032 | X7: 0.0006941822009
A8: 測温接点（形状を球と仮定した場合） | J8: 金属素線（素線露出部2） | M8: 式(1) | N8: 2/Rm = (km・2πrm2) / (lm/2) | S8: 3 | T8: 4 | U8: =($E$14*2*PI()*(($E$7/1000)/2)^2)/(($E$13/1000)/2) -> 0.0006157521601 | V8: W/K | W8: 1624.030032 | X8: 0.0007679754972
B9: 直径 | D9: dj = | E9: =E7*2 -> 0.4 | F9: mm | G9: （dm×2） | J9: 金属素線（内側被覆部1） | M9: 式(2) | N9: 2/Rmi = (km・2πrm2) / (li/2) | S9: 4 | T9: 5 | U9: =($E$14*2*PI()*(($E$7/1000)/2)^2)/(($E$22/1000)/2) -> 0.0006157521601 | V9: W/K | W9: 1624.030032 | X9: 0.0007679754972
B10: 測定面との隙間 | D10: gj = | E10: 0.01 | F10: mm | J10: 金属素線（内側被覆部2） | M10: 式(2) | N10: 2/Rmi = (km・2πrm2) / (li/2) | S10: 5 | T10: 6 | U10: =($E$14*2*PI()*(($E$7/1000)/2)^2)/(($E$22/1000)/2) -> 0.0006157521601 | V10: W/K | W10: 1624.030032 | X10: 0.001883349802
B11: 隙間の熱伝導率 | D11: ka = | E11: 0.1 | F11: W/(m・K) | J11: 金属素線（シース加熱部1） | M11: 式(3) | N11: 2/Rms = (km・2πrm2) / (ls/2) | S11: 6 | T11: 7 | U11: =($E$14*2*PI()*(($E$7/1000)/2)^2)/(($E$28/1000)/2) -> 0.0004105014401 | V11: W/K | W11: 2436.045047 | X11: 0.001883351368
A12: 素線露出部 | J12: 金属素線（シース加熱部2） | M12: 式(3) | N12: 2/Rms = (km・2πrm2) / (ls/2) | S12: 7 | T12: 8 | U12: =($E$14*2*PI()*(($E$7/1000)/2)^2)/(($E$28/1000)/2) -> 0.0004105014401 | V12: W/K | W12: 2436.045047 | X12: 0.008600515979
B13: 長さ | D13: lm = | E13: 5 | F13: mm | J13: 金属素線（フィン部1，長さ lc） | M13: 式(16) | N13: 1/Rms' = km(2πrm2) / lc | S13: 8 | T13: 9 | U13: =$E$14*(2*PI()*(($E$7/1000)/2)^2)/$U$33 -> 0.0006261134185 | V13: W/K | W13: 1597.154717 | X13: 0.008600510108
B14: 素線の平均熱伝導率 | D14: km = | E14: =IF($E$6="T",211,IF($E$6="K",24.5)) -> 24.5 | F14: W/(m・K) | G14: （T→211，K→24.5） | J14: 金属素線（フィン部2，長さ lc） | M14: 式(16) | N14: 1/Rms' = km(2πrm2) / lc | S14: 9 | T14: 10 | U14: =$E$14*(2*PI()*(($E$7/1000)/2)^2)/$U$33 -> 0.0006261134185 | V14: W/K | W14: 1597.154717 | X14: 0.001517737008
B15: 絶縁テープ厚さ | D15: δit = | E15: 0.05 | F15: mm | J15: 金属素線（フィン部3，長さ lc） | M15: 式(16) | N15: 1/Rms' = km(2πrm2) / lc | S15: 10 | T15: 11 | U15: =$E$14*(2*PI()*(($E$7/1000)/2)^2)/$U$33 -> 0.0006261134185 | V15: W/K | W15: 1597.154717 | X15: 0.001517735813
B16: 絶縁テープ熱伝導率 | D16: kit = | E16: 0.2 | F16: W/(m・K) | J16: 金属素線（フィン部4，長さ lc） | M16: 式(16) | N16: 1/Rms' = km(2πrm2) / lc | S16: 11 | T16: 19 | U16: =$E$14*(2*PI()*(($E$7/1000)/2)^2)/$U$33 -> 0.0006261134185 | V16: W/K | W16: 1597.154717 | X16: =(O43-O54)/W16 -> 0.01214189845
B17: 絶縁テープとの隙間 | D17: gm = | E17: 0.065 | F17: mm | G17: 2rm+gm = | H17: =$E$7+$E$17 -> 0.265 | I17: mm | J17: 内側被覆（測定面側） | M17: 式(4) | N17: 1/Ri = π(2li)ki / ln(ri/rm) | S17: 13 | T17: 5 | U17: =PI()*2*($E$22/1000)*$E$21/LN($E$20/$E$7) -> 0.005719201735 | V17: W/K | W17: =1/U17 -> 174.8495763 | X17: =(O45-O40)/W17 -> -0.2559811515
B18: 隙間の熱伝導率 | D18: kgm = | E18: =$E$2 -> 0.0298622288 | F18: W/(m・K) | G18: （空気→E2） | J18: 内側被覆（空気流側） | M18: 式(4) | N18: 1/Ri = π(2li)ki / ln(ri/rm) | S18: 5 | T18: 15 | U18: =PI()*2*($E$22/1000)*$E$21/LN($E$20/$E$7) -> 0.005719201735 | V18: W/K | W18: 174.8495763 | X18: =(O40-O47)/W18 -> -0.03793016025
A19: 内側被覆部（金属素線＋内側被覆） | J19: 内側被覆＋シース（測定面側） | M19: 式(5) | N19: 1/Rs = 1/{ln(ri/rm)/(πls ki)+ln(rs/((√2)ri))/(πls ks)} | S19: 14 | T19: 7 | U19: =1/(LN($E$20/$E$7)/(PI()*($E$28/1000)*$E$21)+LN($E$26/(SQRT(2)*$E$20))/(PI()*($E$28/1000)*$E$27)) -> 0.002719416085 | V19: W/K | W19: 367.7260003 | X19: =(O46-O42)/W19 -> -0.107514044
B20: 内側被覆直径 | D20: di = | E20: =$E$7*3 -> 0.6 | F20: mm | G20: （dm×3） | J20: 内側被覆＋シース（空気流側） | M20: 式(5) | N20: 1/Rs = 1/{ln(ri/rm)/(πls ki)+ln(rs/((√2)ri))/(πls ks)} | S20: 7 | T20: 16 | U20: =1/(LN($E$20/$E$7)/(PI()*($E$28/1000)*$E$21)+LN($E$26/(SQRT(2)*$E$20))/(PI()*($E$28/1000)*$E$27)) -> 0.002719416085 | V20: W/K | W20: 367.7260003 | X20: =(O42-O48)/W20 -> -0.02520238028
B21: 内側被覆の熱伝導率 | D21: ki = | E21: 0.2 | F21: W/(m・K) | J21: 内側被覆＋シース（フィン部1，長さ 2lc） | M21: 式(17) | N21: 1/Rs' = 1/{ln(ri/rm)/(2π(2lc)ki)+ln(rs/((√2)ri))/(2π(2lc)ks)} | S21: 9 | T21: 17 | U21: =1/(LN($E$20/$E$7)/(2*PI()*(2*$U$33)*$E$21)+LN($E$26/(SQRT(2)*$E$20))/(2*PI()*(2*$U$33)*$E$27)) -> 0.003565884985 | V21: W/K | W21: 280.4352928 | X21: =(O43-O54)/W21 -> 0.0691513903
B22: 長さ | D22: li = | E22: 5 | F22: mm | J22: 内側被覆＋シース（フィン部2，長さ 2lc） | M22: 式(17) | N22: 1/Rs' = 1/{ln(ri/rm)/(2π(2lc)ki)+ln(rs/((√2)ri))/(2π(2lc)ks)} | S22: 11 | T22: 18 | U22: =1/(LN($E$20/$E$7)/(2*PI()*(2*$U$33)*$E$21)+LN($E$26/(SQRT(2)*$E$20))/(2*PI()*(2*$U$33)*$E$27)) -> 0.003565884985 | V22: W/K | W22: 280.4352928 | X22: =(O44-O50)/W22 -> -0.1458737501
B23: 測定面との隙間 | D23: gi = | E23: 0.065 | F23: mm | G23: 2ri+gi = | H23: =$E$20+$E$23 -> 0.665 | I23: mm | J23: 絶縁テープ | M23: 式(14) | N23: 1/Rit = kit(2dmlm) / δit | S23: 1 | T23: 12 | U23: =$E$16*2*($E$7/1000)*($E$13/1000)/($E$15/1000) -> 0.008 | V23: W/K | W23: 125 | X23: =(O44-O38)/W23 -> -0.3586285248
B24: 隙間の熱伝導率 | D24: kgi = | E24: =$E$2 -> 0.0298622288 | F24: W/(m・K) | G24: （空気→E2） | J24: 素線露出部と測定面間 | M24: 式(11) | N24: 1/Rgm = -πkgm(2lm) + 4kgm(2lm)(rm+gm)/(2rm+gm)√((2rm+gm)/gm)×atan(√((2rm+gm)/gm)) | S24: 12 | T24: 3 | U24: =-PI()*$E$18*2*($E$13/1000)+4*$E$18*2*($E$13/1000)*($E$7/2+$E$17)/$H$17*SQRT($H$17/$E$17)*ATAN(SQRT($H$17/$E$17)) -> 0.0007301731084 | V24: W/K | W24: 1369.538249 | X24: =(O36-O44)/W24 -> 0.03602955591
A25: シース加熱部（金属素線＋内側被覆＋シース） | J25: 内側被覆部と測定面間 | M25: 式(12) | N25: 1/Rgi = -πkgi(2li) + 4kgi(2li)(ri+gi)/(2ri+gi)√((2ri+gi)/gi)×atan(√((2ri+gi)/gi)) | S25: 1 | T25: 13 | U25: =-PI()*$E$24*2*($E$22/1000)+4*$E$24*2*($E$22/1000)*($E$20/2+$E$23)/$H$23*SQRT($H$23/$E$23)*ATAN(SQRT($H$23/$E$23)) -> 0.001720447455 | V25: W/K | W25: 581.2441392 | X25: =(O36-O45)/W25 -> 0.08906397886
B26: シース等価直径 | D26: ds = | E26: =$E$7*8 -> 1.6 | F26: mm | G26: （dm×8） | J26: シース加熱部と測定面間 | M26: 式(13) | N26: 1/Rgs = -πkgsls + 4kgsls(rs+gs)/(2rs+gs)√((2rs+gs)/gs)×atan(√((2rs+gs)/gs)) | S26: 1 | T26: 14 | U26: =-PI()*$E$30*($E$28/1000)+4*$E$30*($E$28/1000)*($E$26/2+$E$29)/$H$29*SQRT($H$29/$E$29)*ATAN(SQRT($H$29/$E$29)) -> 0.002537004719 | V26: W/K | W26: 394.1656051 | X26: =(O36-O46)/W26 -> 0.1374852954
B27: シースの熱伝導率 | D27: ks = | E27: 0.2 | F27: W/(m・K) | J27: 測温接点と空気流間（半周） | M27: 式(6) | N27: 1/Rhj = h・2πrj2 | S27: 2 | T27: 19 | U27: =$E$38*2*PI()*(($E$9/1000)/2)^2 -> 4.670591221e-06 | V27: W/K | W27: 214105.6566 | X27: =(O37-O54)/W27 -> 0.0002410589438
B28: 長さ | D28: ls = | E28: 7.5 | F28: mm | J28: 素線露出部と空気流間（半周） | M28: 式(7) | N28: 1/Rhm = h・πrm(2lm) | S28: 3 | T28: 19 | U28: =$E$38*PI()*($E$7/1000)/2*($E$13/1000)*2 -> 5.838239026e-05 | V28: W/K | W28: 17128.45253 | X28: =(O38-O54)/W28 -> 0.002947418082
B29: 測定面との隙間 | D29: gs = | E29: =0.065 -> 0.065 | F29: mm | G29: 2rs+gs = | H29: =$E$26+$E$29 -> 1.665 | I29: mm | J29: 内側被覆部と空気流間（半周） | M29: 式(8) | N29: 1/Rhi = h・πri(2li) | S29: 15 | T29: 19 | U29: =$E$38*PI()*($E$20/1000)/2*($E$22/1000)*2 -> 0.0001751471708 | V29: W/K | W29: 5709.484176 | X29: =(O47-O54)/W29 -> 0.00956695052
B30: 隙間の熱伝導率 | D30: kgs = | E30: =$E$2 -> 0.0298622288 | F30: W/(m・K) | G30: （空気→E2） | J30: シース加熱部と空気流間（半周） | M30: 式(9) | N30: 1/Rhs = h・πrsls | S30: 16 | T30: 19 | U30: =$E$38*PI()*($E$26/1000)/2*($E$28/1000) -> 0.0003502943416 | V30: W/K | W30: 2854.742088 | X30: =(O48-O54)/W30 -> 0.0173785595
A31: フィン部（金属素線＋内側被覆＋シース） | J31: フィン部と空気流間2（長さ 2lc） | M31: 式(18) | N31: 1/Rhs' = h'・2πrs・2lc | S31: 17 | T31: 19 | U31: =$E$41*2*PI()*(($E$26/1000)/2)*(2*$U$33) -> 0.001929972619 | V31: W/K | W31: 518.1420659 | X31: =(O54-O50)/W31 -> -0.08986781034
B32: 長さ | D32: ls' = | E32: 100 | F32: mm | J32: フィン部と空気流間2（長さ 2lc） | M32: 式(18) | N32: 1/Rhs' = h'・2πrs・2lc | S32: 18 | T32: 19 | U32: =$E$41*2*PI()*(($E$26/1000)/2)*(2*$U$33) -> 0.001929972619 | V32: W/K | W32: 518.1420659 | X32: =(O50-O51)/W32 -> 0.02089062987
A33: 熱伝達率（対流＋放射） | M33: 式(15) | N33: lc = √[km(2πrm2){1/(h'(2πrs))+ln(rs/((√2)ri))/(2πks)+ln(ri/rm)/(2πki)}] | U33: =SQRT($E$14*2*PI()*(($E$7/1000)/2)^2*(1/($E$41*2*PI()*(($E$26/1000)/2))+LN($E$26/(SQRT(2)*$E$20))/(2*PI()*$E$27)+LN($E$20/$E$7)/(2*PI()*$E$21))) -> 0.002458628668 | V33: m
B34: 周囲風速 | D34: u = | E34: 0.7 | F34: m/s
B35: 測定面の流れ方向辺長 | D35: L = | E35: 0.03 | F35: m | M35: 節点番号 | O35: 温度 | T35: 熱電対の誤差率
D36: ReL* = | E36: =($E$34/1^2)*$E$35/$E$4 -> 1125.865034 | F36: NuL = | G36: =0.61*0.71^(1/3)*$E$36^0.5 -> 18.25965007 | H36: hcv = | I36: =$G$36*$E$3/$E$35 -> 17.00603587 | M36: 1 | N36: Tw = | O36: 80 | P36: ℃ | Q36: 測定面 | T36: ηerr = (Tw - Tj)/(Tw - Tf) = | W36: =(O36-O37)/(O36-O54)*100 -> 6.1598483 | X36: %
B37: 金属素線の放射率 | D37: ε = | E37: 0.2 | H37: hrd = εσ(Tw4-Tf4)/(Tw-Tf) = | I37: =$E$37*0.0000000567*(($O$36+273.15)^4-($O$54+273.15)^4)/(($O$36+273.15)-($O$54+273.15)) -> 1.577656125 | M37: 2 | N37: Tj = | O37: 76.61208344 | P37: ℃ | Q37: 測温接点
B38: 測定面熱伝達率(対流＋放射) | D38: h = | E38: =$I$36+$I$37 -> 18.583692 | F38: W/(m2・K) | G38: ← hcv + hrd | M38: 3 | N38: Tm = | O38: 75.48471069 | P38: ℃ | Q38: 金属素線（素線露出部）
D39: ReD = | E39: =$E$34*($E$26/1000)/$E$4 -> 60.04613517 | F39: NuD = | G39: =IF($E$39<4,0.891*$E$39^0.33,IF($E$39<40,0.821*$E$39^0.385,0.615*$E$39^0.466)) -> 4.146189558 | H39: hcv' = | I39: =$G$39*$E$3/($E$26/1000) -> 72.40375099 | M39: 4 | O39: 74.23749542 | P39: ℃
B40: シース表面の放射率 | D40: ε' = | E40: 0.9 | H40: hrd' = ε'σ(Ts'4-Tf4)(Ts'-Tf) = | I40: =$E$40*0.0000000567*((($O$43+$O$54)/2+273.15)^4-($O$54+273.15)^4)/((($O$43+$O$54)/2+273.15)-($O$54+273.15)) -> 5.679584229 | M40: 5 | N40: Tmi = | O40: 72.99028015 | P40: ℃ | Q40: 金属素線（内側被覆部）
B41: フィン部熱伝達率(対流＋放射) | D41: h' = | E41: =$I$39+$I$40 -> 78.08333522 | F41: W/(m2・K) | G41: ← hcv' + hrd' | M41: 6 | O41: 69.93166351 | P41: ℃
M42: 7 | N42: Tms = | O42: 65.34373474 | P42: ℃ | Q42: 金属素線（シース加熱部）
M43: 8 | N43: T0' = | O43: 44.39249039 | P43: ℃ | Q43: 金属素線（フィン部始端）
M44: 9 | O44: 30.6561451 | P44: ℃
M45: 10 | O45: 28.23208427 | P45: ℃
M46: 11 | O46: 25.80802536 | P46: ℃
M47: 12 | O47: 79.6223526 | P47: ℃
M48: 13 | O48: 74.61130524 | P48: ℃
M49: 14 | O49: 72.41755676 | P49: ℃
M50: 15 | O50: 71.56429291 | P50: ℃
M51: 16 | O51: 60.73997879 | P51: ℃
M52: 17 | O52: 28.66988373 | P52: ℃
M53: 18 | O53: 25.52427292 | P53: ℃
M54: 19 | N54: Tf = | O54: 25 | P54: ℃ | Q54: 周囲空気
